{"text_format":"1","workbook":"xlsx","n_sheets":8,"sheets":["Vejledning","Lærere Ny Løn","Lærere OK ansatte anc.løn","Lærere Tjenestemænd","Bh. kl. ledere Ny Løn ","Bh. kl. ledere Anc. løn","Bh. kl. ledere tjenestemænd","satser"],"not_rendered":{"charts":0,"images":0,"macros":1,"external_links":0,"defined_names":0,"comments":7,"pivot_tables":0},"unopened":[],"bounds":{"document_bytes":16777216,"sheet_cells":100000,"rows_first":2000,"rows_last":500,"rows_between":2000,"halvings":0,"cell_chars":16384,"cell_head_chars":4096},"cells_cut":0,"cells_raw":0,"read":"whole","date_system":"1900"}

{"sheet":"Vejledning","index":0,"n_rows":33,"n_cols":1,"rows_kept":33,"cut":false,"hidden":false,"merged":[]}
["Vejledning til regneark, lønberegning."]
[]
["Regnearket anvendes til kontrol af lønsedler . Man skal bruge sin lønseddel og opgaveoversigten"]
["Regnearket kan anvendes af lærere og børnehaveklasseledere ansat på folkeskoler i Odense."]
["Medlemmer ansat andre steder kan få hjælp til at kontrollere deres lønsedler i Odense Lærerforening"]
[]
[]
["Find det relevante ark i regnearket"]
["(Lærere Ny Løn, Lærere OK ansatte anc. Løn, Lærere tjenestemænd,"]
["Børnehaveklasseledere Ny Løn, Børnehaveklasseledere anc. Løn, "]
["Børnehaveklasseledere tjenestemænd)"]
[]
["Der kan kun indtastes i de gule felter!"]
[]
["Beskæftigelsesgrad indtastes med ugentligt timetal (fremgår af lønsedlen)"]
["Grundløn fremkommer automatisk, tillæg for anciennitet skal indtastes med 1 ved relevant anciennitetstillæg (fremgår af lønsedlen)"]
["Forhåndsaftalt funktions- og kvalifikationsløn indtastes med 1 ud for funktionen (kvalifikationen)"]
["Ved delt funktion anvendes decimaltal."]
["Odensetillæg fremgår automatisk"]
[]
["Skoleaftaler og andet, der ikke er nævnt i regnearket indtastes med det månedlige beløb, der fremgår af lønsedlen."]
["Der kan evt. indtastes navn på disse tillæg."]
[]
["Undervisningstillæg, specialundervisningstillæg m.m. indtastes i de relevante felter med det årlige undervisningstimetal"]
["Timetallet fremgår af opgaveoversigten"]
[]
["Månedslønnen fremkommer automatisk og er sammenlignelig med lønsedlen"]
[]
["Bemærk: Der kan fremkomme øreafvigelser p.g.a. afrunding."]
[]
["Arbejdstidsbestemte tillæg udbetales konkret og fremgår ikke af lønberegneren"]
[]
["Kommentarer eller rettelser er velkomne, kontakt Bo Tryggedsson, Odense Lærerforening."]

{"sheet":"Lærere Ny Løn","index":1,"n_rows":43,"n_cols":3,"rows_kept":43,"cut":false,"hidden":false,"merged":[[1,0,2,2],[0,0,0,1]]}
["Lønberegning niveau",null,{"$f":"satser!F1","v":"01.01.2017"}]
["Lærere Ny løn"]
[]
[]
["Navn: "]
["Måned"]
[]
["Beskæftigelsesgrad (indsæt ugentligt timetal)",37]
[null,null,"Månedsløn"]
["Grundløn trin 31",31,{"$f":"satser!B11*B8/37","v":27049.5}]
["Grundlønstillæg - lærer",null,{"$f":"IF(B14=1,\"\",satser!I3*B8/37)","v":336.16149999999999}]
["Lærere på grundløn",null,{"$f":"IF((B12+B13+B14)>1,\"Fejl: kun et tillæg\",IF(B12=1,satser!D12*B8/37,\"\"))","v":""}]
["Anciennitetstillæg (trin 31-35)",null,{"$f":"IF((B12+B13+B14)>1,\"Fejl: kun et tillæg\",IF(B13=1,satser!D15*B8/37,\"\"))","v":""}]
["Anciennitetstillæg (trin 31-40)",null,{"$f":"IF((B12+B13+B14)>1,\"Fejl: kun et tillæg\",IF(B14=1,satser!D20*B8/37,\"\"))","v":""}]
["Anciennitetstillæg - lærer",null,{"$f":"IF(AND(B15=1,B14=1),satser!I4*B8/37,\"\")","v":""}]
["Undervisertillæg",null,{"$f":"satser!I9*B8/37","v":1456.6998333333333}]
[]
["Funktions- og kvalifikationsløn: Tast 1 i det gule felt, hvis omfattet:"]
["Nyt Odense tillæg",null,{"$f":"satser!I20*B8/37","v":1131.74}]
["Mange 2-sprogede elever",null,{"$f":"(IF(B20>1,\"Fejl:kun et tillæg\",IF(B20>0,B20*satser!I21,\"\")))","v":""}]
["Kl. lærer/bh.kl.leder >27",null,{"$f":"(IF(B21>1,\"Fejl:kun et tillæg\",IF(B21>0,B21*satser!I22,\"\")))","v":""}]
["Kontaktperson til elevråd",null,{"$f":"(IF(B22>1,\"Fejl:kun et tillæg\",IF(B22>0,B22*satser!I23,\"\")))","v":""}]
["Obs-klasser",null,{"$f":"(IF(B23>1,\"Fejl:kun et tillæg\",IF(B23>0,B23*satser!I24*B8/37,\"\")))","v":""}]
["Flere/skiftende arbejdssteder",null,{"$f":"(IF(B24>1,\"Fejl:kun et tillæg\",IF(B24>0,B24*satser!I25*B8/37,\"\")))","v":""}]
["TR-tillæg",null,{"$f":"(IF(B25>1,\"Fejl:kun et tillæg\",IF(B25>0,B25*satser!I26,\"\")))","v":""}]
["Valgområde - mere end 35 ansatte",null,{"$f":"(IF(B26>1,\"Fejl:kun et tillæg\",IF(B26>0,B26*satser!I27,\"\")))","v":""}]
["AMR funktion",null,{"$f":"(IF(B27>1,\"Fejl:kun et tillæg\",IF(B27>0,B27*satser!I28,\"\")))","v":""}]
["Spec-uv skolebørn",null,{"$f":"(IF(B28>1,\"Fejl:kun et tillæg\",IF(B28>0,B28*satser!I29,\"\")))","v":""}]
[]
["Specialv./erfaring fra Vollsmose skoler",null,{"$f":"(IF(B30>1,\"Fejl:kun et tillæg\",IF(B30>0,B30*satser!I31*B8/37,\"\")))","v":""}]
["Pæd. Diplomudd./Masterudd.",null,{"$f":"(IF(B31>1,\"Fejl:kun et tillæg\",IF(B31>0,B31*satser!I32*B8/37,\"\")))","v":""}]
[]
["Undervisnings- og specialundervisningstillæg m.m. Indsæt tal fra opgaveoversigten i de gule felter"]
["I alt undervisning "]
["uv-tillæg > 750",{"$f":"(IF((B34/B8*37)>750,((B34/B8*37)-750)*B8/37,0))/12","v":0},{"$f":"IF(B35>0,B35*satser!I36,\"\")","v":""}]
["tale/høre tillæg",null,{"$f":"IF(B36>0,(B36/12)*satser!I37,\"\")","v":""}]
["Spec-skole uv-tillæg",null,{"$f":"IF(B37>0,(B37/12)*satser!I38,\"\")","v":""}]
[]
["Andre tillæg (fx skoleaftaler) Indtast beløb fra lønseddel"]
[]
[]
[]
["Fast løn i alt",null,{"$f":"SUM(C10:C42)","v":29974.101333333332}]

{"sheet":"Lærere OK ansatte anc.løn","index":2,"n_rows":43,"n_cols":3,"rows_kept":43,"cut":false,"hidden":false,"merged":[[1,0,2,2],[0,0,0,1]]}
["Lønberegning niveau ",null,{"$f":"satser!F1","v":"01.01.2017"}]
["Lærere OK ansatte anc. Løn"]
[]
[]
["Navn: "]
["Måned"]
[]
["Beskæftigelsesgrad (indsæt ugentligt timetal)",37]
[]
[null,null,"Månedsløn"]
["Grundløn trin 43",43,{"$f":"satser!B23*B8/37","v":33151.17}]
["Stillingstillæg - lærer",null,{"$f":"satser!I5*B8/37","v":1456.6998333333333}]
["Undervisertillæg",null,{"$f":"satser!I10*B8/37","v":616.29608333333329}]
[]
[]
[]
[]
["Funktions- og kvalifikationsløn: Tast 1 i det gule felt, hvis omfattet:"]
["Nyt Odense tillæg",null,{"$f":"satser!I20*B8/37","v":1131.74}]
["Mange 2-sprogede elever",null,{"$f":"(IF(B20>1,\"Fejl:kun et tillæg\",IF(B20>0,B20*satser!J21,\"\")))","v":""}]
["Kl. lærer/bh.kl.leder >27",null,{"$f":"(IF(B21>1,\"Fejl:kun et tillæg\",IF(B21>0,B21*satser!J22,\"\")))","v":""}]
["Kontaktperson til elevråd",null,{"$f":"(IF(B22>1,\"Fejl:kun et tillæg\",IF(B22>0,B22*satser!J23,\"\")))","v":""}]
["Obs-klasser",null,{"$f":"(IF(B23>1,\"Fejl:kun et tillæg\",IF(B23>0,B23*satser!J24*B8/37,\"\")))","v":""}]
["Flere/skiftende arbejdssteder",null,{"$f":"(IF(B24>1,\"Fejl:kun et tillæg\",IF(B24>0,B24*satser!J25*B8/37,\"\")))","v":""}]
["TR-tillæg",null,{"$f":"(IF(B25>1,\"Fejl:kun et tillæg\",IF(B25>0,B25*satser!J26,\"\")))","v":""}]
["Valgområde - mere end 35 ansatte",null,{"$f":"(IF(B26>1,\"Fejl:kun et tillæg\",IF(B26>0,B26*satser!J27,\"\")))","v":""}]
["AMR funktion",null,{"$f":"(IF(B27>1,\"Fejl:kun et tillæg\",IF(B27>0,B27*satser!J28,\"\")))","v":""}]
["Spec-uv skolebørn",null,{"$f":"(IF(B28>1,\"Fejl:kun et tillæg\",IF(B28>0,B28*satser!J29,\"\")))","v":""}]
[]
["Specialv./erfaring fra Vollsmose skoler",null,{"$f":"(IF(B30>1,\"Fejl:kun et tillæg\",IF(B30>0,B30*satser!J31*B8/37,\"\")))","v":""}]
["Pæd. Diplomudd./Masterudd.",null,{"$f":"(IF(B31>1,\"Fejl:kun et tillæg\",IF(B31>0,B31*satser!J32*B8/37,\"\")))","v":""}]
[]
["Undervisnings- og specialundervisningstillæg m.m. Indsæt tal fra opgaveoversigten i de gule felter"]
["I alt undervisning "]
["uv-tillæg > 750",{"$f":"(IF((B34/B8*37)>750,((B34/B8*37)-750)*B8/37,0))/12","v":0},{"$f":"IF(B35>0,B35*satser!J36,\"\")","v":""}]
["tale/høre tillæg",null,{"$f":"IF(B36>0,(B36/12)*satser!J37,\"\")","v":""}]
["Spec-skole uv-tillæg",null,{"$f":"IF(B37>0,(B37/12)*satser!J38,\"\")","v":""}]
[]
["Andre tillæg (fx skoleaftaler) Indtast beløb fra lønseddel"]
[]
[" "]
[]
["Fast løn i alt",null,{"$f":"SUM(C10:C42)","v":36355.905916666663}]

{"sheet":"Lærere Tjenestemænd","index":3,"n_rows":43,"n_cols":3,"rows_kept":43,"cut":false,"hidden":false,"merged":[[1,0,2,2],[0,0,0,1]]}
["Lønberegning niveau",null,{"$f":"satser!F1","v":"01.01.2017"}]
["Lærere Tjenestemænd"]
[]
[]
["Navn: "]
["Måned"]
[]
["Beskæftigelsesgrad (indsæt ugentligt timetal)",37]
[]
[null,null,"Månedsløn"]
["Grundløn trin 43",43,{"$f":"satser!B23*B8/37","v":33151.17}]
["Stillingstillæg - lærer",null,{"$f":"satser!I5*B8/37","v":1456.6998333333333}]
["Pension - stillingstillæg lærer ",null,{"$f":"IF(B13=1,satser!I6,\"\")","v":""}]
["Undervisertillæg",null,{"$f":"satser!I10*B8/37","v":616.29608333333329}]
[]
[]
[]
["Funktions- og kvalifikationsløn: Tast 1 i det gule felt, hvis omfattet:"]
["Nyt Odense tillæg",null,{"$f":"satser!I20*B8/37","v":1131.74}]
["Mange 2-sprogede elever",null,{"$f":"(IF(B20>1,\"Fejl:kun et tillæg\",IF(B20>0,B20*satser!J21,\"\")))","v":""}]
["Kl. lærer/bh.kl.leder >27",null,{"$f":"(IF(B21>1,\"Fejl:kun et tillæg\",IF(B21>0,B21*satser!J22,\"\")))","v":""}]
["Kontaktperson til elevråd",null,{"$f":"(IF(B22>1,\"Fejl:kun et tillæg\",IF(B22>0,B22*satser!J23,\"\")))","v":""}]
["Obs-klasser",null,{"$f":"(IF(B23>1,\"Fejl:kun et tillæg\",IF(B23>0,B23*satser!J24*B8/37,\"\")))","v":""}]
["Flere/skiftende arbejdssteder",null,{"$f":"(IF(B24>1,\"Fejl:kun et tillæg\",IF(B24>0,B24*satser!J25*B8/37,\"\")))","v":""}]
["TR-tillæg",null,{"$f":"(IF(B25>1,\"Fejl:kun et tillæg\",IF(B25>0,B25*satser!J26,\"\")))","v":""}]
["Valgområde - mere end 35 ansatte",null,{"$f":"(IF(B26>1,\"Fejl:kun et tillæg\",IF(B26>0,B26*satser!J27,\"\")))","v":""}]
["AMR funktion",null,{"$f":"(IF(B27>1,\"Fejl:kun et tillæg\",IF(B27>0,B27*satser!J28,\"\")))","v":""}]
["Spec-uv skolebørn",null,{"$f":"(IF(B28>1,\"Fejl:kun et tillæg\",IF(B28>0,B28*satser!J29,\"\")))","v":""}]
[]
["Specialv./erfaring fra Vollsmose skoler",null,{"$f":"(IF(B30>1,\"Fejl:kun et tillæg\",IF(B30>0,B30*satser!J31*B8/37,\"\")))","v":""}]
["Pæd. Diplomudd./Masterudd.",null,{"$f":"(IF(B31>1,\"Fejl:kun et tillæg\",IF(B31>0,B31*satser!D24*B8/37,\"\")))","v":""}]
[]
["Undervisnings- og specialundervisningstillæg m.m. Indsæt tal fra opgaveoversigten i de gule felter"]
["I alt undervisning "]
["uv-tillæg > 750",{"$f":"(IF((B34/B8*37)>750,((B34/B8*37)-750)*B8/37,0))/12","v":0},{"$f":"IF(B35>0,B35*satser!J36,\"\")","v":""}]
["tale/høre tillæg",null,{"$f":"IF(B36>0,(B36/12)*satser!J37,\"\")","v":""}]
["Spec-skole uv-tillæg",null,{"$f":"IF(B37>0,(B37/12)*satser!J38,\"\")","v":""}]
[]
["Andre tillæg (fx skoleaftaler) Indtast beløb fra lønseddel"]
[]
[" "]
[]
["Fast løn i alt",null,{"$f":"SUM(C10:C42)","v":36355.905916666663}]

{"sheet":"Bh. kl. ledere Ny Løn ","index":4,"n_rows":44,"n_cols":3,"rows_kept":44,"cut":false,"hidden":false,"merged":[[1,0,2,2],[0,0,0,1]]}
["Lønberegning niveau",null,{"$f":"satser!F1","v":"01.01.2017"}]
["Børnehaveklasseledere Ny løn"]
[]
[]
["Navn: "]
["Måned"]
[]
["Beskæftigelsesgrad (indsæt ugentligt timetal)",37]
[null,null,"Månedsløn"]
["Grundløn trin 28",28,{"$f":"satser!B8*B8/37","v":25793.919999999998}]
["Grundlønstillæg - børnehaveklasseleder",null,{"$f":"IF(B14=1,\"\",satser!I7*B8/37)","v":224.10766666666669}]
[]
["Anciennitetstillæg (trin 28-31)",null,{"$f":"IF((B13+B14)>1,\"Fejl: kun et tillæg\",IF(B13=1,satser!D11*B8/37,\"\"))","v":""}]
["Anciennitetstillæg (trin 28-33)",null,{"$f":"IF((B12+B13+B14)>1,\"Fejl: kun et tillæg\",IF(B14=1,satser!D13*B8/37,\"\"))","v":""}]
["Anciennitetstillæg - børnehaveklasseleder",null,{"$f":"IF(AND(B15=1,B14=1),satser!I8*B8/37,\"\")","v":""}]
["Undervisertillæg",null,{"$f":"satser!I11*B8/37","v":1725.6290333333334}]
[]
["Funktions- og kvalifikationsløn: Tast 1 i det gule felt, hvis omfattet:"]
["Nyt Odense tillæg",null,{"$f":"satser!I20*B8/37","v":1131.74}]
["Mange 2-sprogede elever",null,{"$f":"(IF(B20>1,\"Fejl:kun et tillæg\",IF(B20>0,B20*satser!I21,\"\")))","v":""}]
["Kl. lærer/bh.kl.leder >27",null,{"$f":"(IF(B21>1,\"Fejl:kun et tillæg\",IF(B21>0,B21*satser!I22,\"\")))","v":""}]
["Kontaktperson til elevråd",null,{"$f":"(IF(B22>1,\"Fejl:kun et tillæg\",IF(B22>0,B22*satser!I23,\"\")))","v":""}]
["Obs-klasser",null,{"$f":"(IF(B23>1,\"Fejl:kun et tillæg\",IF(B23>0,B23*satser!I24*B8/37,\"\")))","v":""}]
["Flere/skiftende arbejdssteder",null,{"$f":"(IF(B24>1,\"Fejl:kun et tillæg\",IF(B24>0,B24*satser!I25*B8/37,\"\")))","v":""}]
["TR-tillæg",null,{"$f":"(IF(B25>1,\"Fejl:kun et tillæg\",IF(B25>0,B25*satser!I26,\"\")))","v":""}]
["Valgområde - mere end 35 ansatte",null,{"$f":"(IF(B26>1,\"Fejl:kun et tillæg\",IF(B26>0,B26*satser!I27,\"\")))","v":""}]
["AMR funktion",null,{"$f":"(IF(B27>1,\"Fejl:kun et tillæg\",IF(B27>0,B27*satser!I28,\"\")))","v":""}]
["Spec-uv skolebørn",null,{"$f":"(IF(B28>1,\"Fejl:kun et tillæg\",IF(B28>0,B28*satser!I29,\"\")))","v":""}]
[]
["Specialv./erfaring fra Vollsmose skoler",null,{"$f":"(IF(B30>1,\"Fejl:kun et tillæg\",IF(B30>0,B30*satser!I31*B8/37,\"\")))","v":""}]
["Pæd. Diplomudd./Masterudd.",null,{"$f":"(IF(B31>1,\"Fejl:kun et tillæg\",IF(B31>0,B31*satser!I32*B8/37,\"\")))","v":""}]
[]
["Undervisnings- og specialundervisningstillæg m.m. Indsæt tal fra opgaveoversigten i de gule felter"]
["I alt undervisning "]
["uv-tillæg > 836",{"$f":"(IF((B34/B8*37)>835,((B34/B8*37)-835)*B8/37,0))/12","v":0},{"$f":"IF(B35>0,B35*satser!I36,\"\")","v":""}]
["tale/høre tillæg",null,{"$f":"IF(B36>0,(B36/12)*satser!I37,\"\")","v":""}]
["Spec-skole uv-tillæg",null,{"$f":"IF(B37>0,(B37/12)*satser!I38,\"\")","v":""}]
["to-sprogede elever",null,{"$f":"IF(B38>0,(B38/12)*satser!I40,\"\")","v":""}]
[]
["Andre tillæg (fx skoleaftaler) Indtast beløb fra lønseddel"]
[]
[" "]
[]
["Fast løn i alt",null,{"$f":"SUM(C10:C43)","v":28875.396700000001}]

{"sheet":"Bh. kl. ledere Anc. løn","index":5,"n_rows":45,"n_cols":3,"rows_kept":45,"cut":false,"hidden":false,"merged":[[1,0,2,2],[0,0,0,1]]}
["Lønberegning niveau",null,{"$f":"satser!F1","v":"01.01.2017"}]
["Børnehaveklasseledere anc. Løn"]
[]
[]
["Navn: "]
["Måned"]
[]
["Beskæftigelsesgrad (indsæt ugentligt timetal)",37]
[null,null,"Månedsløn"]
["Grundløn trin 36",36,{"$f":"satser!B16*B8/37","v":29320.579999999998}]
["Trintillæg",null,{"$f":"satser!I13*B8/37","v":515.44763333333333}]
["Undervisertillæg",null,{"$f":"satser!I12*B8/37","v":885.22528333333332}]
[]
[]
[]
[]
[]
[]
["Funktions- og kvalifikationsløn: Tast 1 i det gule felt, hvis omfattet:"]
["Nyt Odense tillæg",null,{"$f":"satser!I20*B8/37","v":1131.74}]
["Mange 2-sprogede elever",null,{"$f":"(IF(B21>1,\"Fejl:kun et tillæg\",IF(B21>0,B21*satser!J21,\"\")))","v":""}]
["Kl. lærer/bh.kl.leder >27",null,{"$f":"(IF(B22>1,\"Fejl:kun et tillæg\",IF(B22>0,B22*satser!J22,\"\")))","v":""}]
["Kontaktperson til elevråd",null,{"$f":"(IF(B23>1,\"Fejl:kun et tillæg\",IF(B23>0,B23*satser!J23,\"\")))","v":""}]
["Obs-klasser",null,{"$f":"(IF(B24>1,\"Fejl:kun et tillæg\",IF(B24>0,B24*satser!J24*B8/37,\"\")))","v":""}]
["Flere/skiftende arbejdssteder",null,{"$f":"(IF(B25>1,\"Fejl:kun et tillæg\",IF(B25>0,B25*satser!J25*B8/37,\"\")))","v":""}]
["TR-tillæg",null,{"$f":"(IF(B26>1,\"Fejl:kun et tillæg\",IF(B26>0,B26*satser!J26,\"\")))","v":""}]
["Valgområde - mere end 35 ansatte",null,{"$f":"(IF(B27>1,\"Fejl:kun et tillæg\",IF(B27>0,B27*satser!J27,\"\")))","v":""}]
["AMR funktion",null,{"$f":"(IF(B28>1,\"Fejl:kun et tillæg\",IF(B28>0,B28*satser!J28,\"\")))","v":""}]
["Spec-uv skolebørn",null,{"$f":"(IF(B29>1,\"Fejl:kun et tillæg\",IF(B29>0,B29*satser!J29,\"\")))","v":""}]
[]
["Specialv./erfaring fra Vollsmose skoler",null,{"$f":"(IF(B31>1,\"Fejl:kun et tillæg\",IF(B31>0,B31*satser!J31*B8/37,\"\")))","v":""}]
["Pæd. Diplomudd./Masterudd.",null,{"$f":"(IF(B32>1,\"Fejl:kun et tillæg\",IF(B32>0,B32*satser!J32*B8/37,\"\")))","v":""}]
[]
["Undervisnings- og specialundervisningstillæg m.m. Indsæt tal fra opgaveoversigten i de gule felter"]
["I alt undervisning "]
["uv-tillæg > 836",{"$f":"(IF((B35/B8*37)>835,((B35/B8*37)-835)*B8/37,0))/12","v":0},{"$f":"IF(B36>0,B36*satser!J36,\"\")","v":""}]
["tale/høre tillæg",null,{"$f":"IF(B37>0,(B37/12)*satser!J37,\"\")","v":""}]
["Spec-skole uv-tillæg",null,{"$f":"IF(B38>0,(B38/12)*satser!J38,\"\")","v":""}]
["to-sprogede elever",null,{"$f":"IF(B39>0,(B39/12)*satser!J40,\"\")","v":""}]
[]
["Andre tillæg (fx skoleaftaler) Indtast beløb fra lønseddel"]
[]
[" "]
[]
["Fast løn i alt",null,{"$f":"SUM(C10:C44)","v":31852.992916666666}]

{"sheet":"Bh. kl. ledere tjenestemænd","index":6,"n_rows":45,"n_cols":3,"rows_kept":45,"cut":false,"hidden":false,"merged":[[1,0,2,2],[0,0,0,1]]}
["Lønberegning niveau",null,{"$f":"satser!F1","v":"01.01.2017"}]
["Børnehaveklasseledere tjenestemænd"]
[]
[]
["Navn: "]
["Måned"]
[]
["Beskæftigelsesgrad (indsæt ugentligt timetal)",37]
[null,null,"Månedsløn"]
["Grundløn trin 36",36,{"$f":"satser!B16*B8/37","v":29320.579999999998}]
["Trintillæg",null,{"$f":"satser!I13*B8/37","v":515.44763333333333}]
["Undervisertillæg",null,{"$f":"satser!I12*B8/37","v":885.22528333333332}]
[]
[]
[]
[]
[]
[]
["Funktions- og kvalifikationsløn: Tast 1 i det gule felt, hvis omfattet:"]
["Nyt Odense tillæg",null,{"$f":"satser!I20*B8/37","v":1131.74}]
["Mange 2-sprogede elever",null,{"$f":"(IF(B21>1,\"Fejl:kun et tillæg\",IF(B21>0,B21*satser!J21,\"\")))","v":""}]
["Kl. lærer/bh.kl.leder >27",null,{"$f":"(IF(B22>1,\"Fejl:kun et tillæg\",IF(B22>0,B22*satser!J22,\"\")))","v":""}]
["Kontaktperson til elevråd",null,{"$f":"(IF(B23>1,\"Fejl:kun et tillæg\",IF(B23>0,B23*satser!J23,\"\")))","v":""}]
["Obs-klasser",null,{"$f":"(IF(B24>1,\"Fejl:kun et tillæg\",IF(B24>0,B24*satser!J24*B8/37,\"\")))","v":""}]
["Flere/skiftende arbejdssteder",null,{"$f":"(IF(B25>1,\"Fejl:kun et tillæg\",IF(B25>0,B25*satser!J25*B8/37,\"\")))","v":""}]
["TR-tillæg",null,{"$f":"(IF(B26>1,\"Fejl:kun et tillæg\",IF(B26>0,B26*satser!J26,\"\")))","v":""}]
["Valgområde - mere end 35 ansatte",null,{"$f":"(IF(B27>1,\"Fejl:kun et tillæg\",IF(B27>0,B27*satser!J27,\"\")))","v":""}]
["AMR funktion",null,{"$f":"(IF(B28>1,\"Fejl:kun et tillæg\",IF(B28>0,B28*satser!J28,\"\")))","v":""}]
["Spec-uv skolebørn",null,{"$f":"(IF(B29>1,\"Fejl:kun et tillæg\",IF(B29>0,B29*satser!J29,\"\")))","v":""}]
[]
["Specialv./erfaring fra Vollsmose skoler",null,{"$f":"(IF(B31>1,\"Fejl:kun et tillæg\",IF(B31>0,B31*satser!J31*B8/37,\"\")))","v":""}]
["Pæd. Diplomudd./Masterudd.",null,{"$f":"(IF(B32>1,\"Fejl:kun et tillæg\",IF(B32>0,B32*satser!D17*B8/37,\"\")))","v":""}]
[]
["Undervisnings- og specialundervisningstillæg m.m. Indsæt tal fra opgaveoversigten i de gule felter"]
["I alt undervisning "]
["uv-tillæg > 836",{"$f":"(IF((B35/B8*37)>835,((B35/B8*37)-835)*B8/37,0))/12","v":0},{"$f":"IF(B36>0,B36*satser!J36,\"\")","v":""}]
["tale/høre tillæg",null,{"$f":"IF(B37>0,(B37/12)*satser!J37,\"\")","v":""}]
["Spec-skole uv-tillæg",null,{"$f":"IF(B38>0,(B38/12)*satser!J38,\"\")","v":""}]
["to-sprogede elever",null,{"$f":"IF(B39>0,(B39/12)*satser!J40,\"\")","v":""}]
[]
["Andre tillæg (fx skoleaftaler) Indtast beløb fra lønseddel"]
[]
[" "]
[]
["Fast løn i alt",null,{"$f":"SUM(C10:C44)","v":31852.992916666666}]

{"sheet":"satser","index":7,"n_rows":40,"n_cols":11,"rows_kept":40,"cut":false,"hidden":false,"merged":[[0,0,0,4],[18,10,18,11],[17,6,17,7],[1,6,1,7],[2,2,2,3],[5,2,5,3]]}
["Satser pr. ",null,null,null,null,"01.01.2017"]
[null,null,null,null,null,null,"Grundbeløb",null,"Månedligt beløb pr.",{"$f":"F1","v":"01.01.2017"}]
[null,null,null,null,null,"Grundlønstillæg - lærer",3000,null,{"$f":"G3*C27/12","v":336.16149999999999}]
[null,null,null,null,null,"Anciennitetstillæg - lærer",10000,null,{"$f":"G4*C27/12","v":1120.5383333333334}]
[null,null,null,null,null,"Stillingstillæg - lærer",null,13000,{"$f":"H5*C27/12","v":1456.6998333333333}]
["Løntrin ","Pr. måned","Anciennitetstillæg",null,null,"Pension - stillingstilæg lærer",null,2202,{"$f":"H6*C27/12","v":246.74254099999999},"Beløbet er 17,3% af 13.000 fratrukket særlig ferie"]
[27,25392.25,null,null,null,"Grundlønstillæg - børnehaveklasseleder",2000,null,{"$f":"G7*C27/12","v":224.10766666666666}]
[28,25793.919999999998,null,null,null,"Anciennitetstillæg - børnehaveklasseleder",7000,null,{"$f":"G8*C27/12","v":784.37683333333337}]
[29,26204,null,null,null,"Undervisertillæg, lærere Ny Løn",13000,null,{"$f":"G9*C27/12","v":1456.6998333333333}]
[30,26622.17,null,null,null,"Undervisertillæg, lærere Anciennitetsløn",5500,null,{"$f":"G10*C27/12","v":616.29608333333329}]
[31,27049.5,"28 . 31",{"$f":"B11-B8","v":1255.5800000000017},null,"Undervisertillæg, børehaveklasseledere, Ny Løn",15400,null,{"$f":"G11*C27/12","v":1725.6290333333334}]
[32,27485.42,"31 - 32",{"$f":"B12-B11","v":435.91999999999825},null,"Undervisertillæg, børehaveklasseledere, Anciennitetsløn",7900,null,{"$f":"G12*C27/12","v":885.22528333333332}]
[33,27930.080000000002,"28 - 33",{"$f":"B13-B8","v":2136.1600000000035},null,"Trintillæg børnehaveklasseledere",4600,null,{"$f":"G13*C27/12","v":515.44763333333333}]
[34,28384.5]
[35,28847.58,"31 - 35",{"$f":"B15-B11","v":1798.0800000000017}]
[36,29320.58]
[37,29802.83,"36 - 37",{"$f":"B17-B16","v":482.25}]
[38,30317.33,null,null,null,null,"Grundbeløb",null,"Månedligt beløb pr.",{"$f":"F1","v":"01.01.2017"}]
[39,30829.67,null,null,null,"Funktions- og kvalifikationsløn: ","Ny Løn","Anciennitetsløn","Ny Løn","Anciennitetsløn"]
[40,31352.75,"31 - 40",{"$f":"B20-B11","v":4303.25},null,"Nyt Odense tillæg",10100,10100,{"$f":"ROUND(G20*$C$27/12,2)","v":1131.74},{"$f":"ROUND(H20*$C$27/12,2)","v":1131.74}]
[41,31886.25,null,null,null,"Mange 2-sprogede elever",4200,3100,470.63,347.37]
[42,32430.42,null,null,null,"Kl. lærer/bh.kl.leder >27",4200,3100,470.63,347.37]
[43,33151.17,null,null,null,"Kontaktperson til elevråd",3100,3100,347.37,347.37]
[44,33891.83,"43 - 44",{"$f":"B24-B23","v":740.66000000000349},null,"Obs-klasser",4200,4200,470.63,470.63]
[null,null,null,null,null,"Flere/skiftende arbejdssteder",3100,3100,347.37,347.37]
[null,null,null,null,null,"TR-tillæg",5000,5000,560.27,560.27]
["Reguleringsfaktor:",null,1.344646,null,null,"valgområde - mere end 35 ansatte",1000,1000,112.05,112.05]
[null,null,null,null,null,"AMR funktion",5000,5000,560.27,560.27]
[null,null,null,null,null,"Spec-uv skolebørn",18600,18600,2084.1999999999998,2084.1999999999998]
[]
[null,null,null,null,null,"Specialv./erfaring fra Vollsmose skoler",3600,3600,{"$f":"ROUND(G31*$C$27/12,2)","v":403.39},{"$f":"ROUND(H31*$C$27/12,2)","v":403.39}]
[null,null,null,null,null,"Pæd. Diplomudd./Masterudd.",7500,7500,{"$f":"ROUND(G32*$C$27/12,2)","v":840.4},{"$f":"ROUND(H32*$C$27/12,2)","v":840.4},"Tjenestemænd dog 1 trin"]
[]
[]
[null,null,null,null,null,"Undervisnings- og specialundervisningstillæg m.m. "]
[null,null,null,null,null,"uv-tillæg > 750",90,90,{"$f":"ROUND(G36*$C$27,2)","v":121.02},121.02]
[null,null,null,null,null,"tale/høre tillæg",25.84,25.84,34.75,34.75]
[null,null,null,null,null,"Spec-skole uv-tillæg",18.920000000000002,18.920000000000002,25.44,25.44]
[]
[null,null,null,null,null,"to-sprogede elever",18.920000000000002,18.920000000000002,{"$f":"ROUND(G40*$C$27,2)","v":25.44},{"$f":"ROUND(H40*$C$27,2)","v":25.44}]